Cogmind - Beta 14 *** ADVENTURER MODE // 2024.08.10 @ 03:18:48 Player: Ms. V3-11A Result: Destroyed by G-67 Veteran with Field Laser Performance ------------- Evolutions (6) 3000 Regions Visited (17) 3400 Robots Destroyed (184) 920 Value Destroyed (8442) 8442 Prototype IDs (30) 600 Alien Tech Used (0) 0 Bonus (5157) 5157 TOTAL SCORE: 21519 Bonus ------- High Alert Combat Kills 367 Follower Combat Kills 2038 Met Data Miner 300 Met Warlord at Base 500 MAIN.C Attacked Warlord 500 Warlord Defense Kills 768 Built Enhanced Grunts 300 Met R17 at Cetus 500 Friendly Fire -116 Cogmind --------- Core Integrity 0/1150 Matter 300/300 Energy 94/100 System Corruption 28% Temperature Cool (30) Movement Core (50) Location -4/Factory Parts ------- > --- POWER (2) -------- (None) > --- PROPULSION (4) --- (None) > --- UTILITY (11) ----- (None) > --- WEAPON (2) ------- (None) > --- INVENTORY (5) ---- Micro Fission Core Advanced Medium Treads High-capacity Storage Unit Advanced Variable Charge Gun Hypervelocity Coil Gun Peak State ------------ > --- POWER ------------ Quantum Reactor Quantum Reactor > --- PROPULSION ------- Centrium Heavy Treads Centrium Heavy Treads > --- UTILITY ---------- Advanced Cryofiber Web Advanced Cooling System High-capacity Storage Unit Advanced Targeting Computer Experimental Core Analyzer Improved Light Armor Plating Improved Medium Armor Plating Centrium Medium Armor Plating Centrium Medium Armor Plating Centrium Medium Armor Plating Force Field > --- WEAPON ----------- Quantum Rifle Advanced KE Penetrator > --- INVENTORY -------- Improved Treads Advanced Medium Treads Improved Cryofiber Web High-capacity Storage Unit High-capacity Battery Matter Compressor Improved Terrain Scanner Makeshift Transmission Jammer Experimental Phase Shifter Improved Light Armor Plating Wave Gun Advanced Variable Charge Gun Advanced Variable Charge Gun Advanced Variable Charge Gun HERF Cannon KE Penetrator Hypervelocity Coil Gun Hypervelocity Gauss Cannon Improved Proton Missile Launcher [Rating: 146] Favorites ----------- Power Quantum Reactor Engine Reinforced Deuterium Engine Power Core Light Fission Core Reactor Quantum Reactor Propulsion Centrium Heavy Treads Treads Centrium Heavy Treads Leg Improved Aluminum Leg Utility High-capacity Storage Unit Device Makeshift Transmission Jammer Storage High-capacity Storage Unit Processor Improved Signal Interpreter Hackware Hacking Suite Protection Centrium Medium Armor Plating Weapon Advanced KE Penetrator Energy Gun Spread Laser Energy Cannon Cooled Plasma Cannon Ballistic Gun Advanced KE Penetrator Ballistic Cannon Magnetic Acceleration Cannon Launcher Improved Proton Missile Launcher Impact Weapon Mace Slashing Weapon Katana Build | -11 -10 -9 -8 -7 -7 -7 -7 -6 -6 -6 -6 -5 -5 -5 -5 -4 -4 ------- Run | Yrd Mat Mat Mat Fac Low Low Dat Pro Fac Ext Cet Fac Upp Upp War Pro Fac Slots Evolved 12 | . . 2 2 2 . . . . 2 . . 2 . . . . 2 Power 1 | . . . . 1 . . . . . . . . . . . . . Propulsion 2 | . . 1 . . . . . . . . . 1 . . . . . Utility 9 | . . 1 2 1 . . . . 2 . . 1 . . . . 2 Weapon . | . . . . . . . . . . . . . . . . . . Parts Attached 211 | . 12 6 25 16 4 2 . 18 22 15 10 18 5 6 7 12 33 Power 24 | . 1 1 3 4 . . . 3 4 . 2 . . . 1 . 5 Engine 7 | . 1 1 2 2 . . . 1 . . . . . . . . . Core 10 | . . . 1 2 . . . 2 4 . . . . . . . 1 Reactor 7 | . . . . . . . . . . . 2 . . . 1 . 4 Propulsion 34 | . 5 1 8 . 1 . . 4 5 2 1 1 . . . . 6 Treads 26 | . . . 6 . 1 . . 4 5 2 1 1 . . . . 6 Leg 8 | . 5 1 2 . . . . . . . . . . . . . . Wheel . | . . . . . . . . . . . . . . . . . . Hover . | . . . . . . . . . . . . . . . . . . Flight . | . . . . . . . . . . . . . . . . . . Utility 83 | . 2 3 9 8 1 . . 3 9 5 1 15 5 6 2 3 11 Device 46 | . 1 . 3 2 1 . . 2 6 2 . 9 5 6 1 2 6 Storage 4 | . 1 1 2 . . . . . . . . . . . . . . Processor 7 | . . . . 3 . . . . . . . 3 . . . 1 . Hackware 3 | . . 1 2 . . . . . . . . . . . . . . Protection 23 | . . 1 2 3 . . . 1 3 3 1 3 . . 1 . 5 Artifact . | . . . . . . . . . . . . . . . . . . Weapon 70 | . 4 1 5 4 2 2 . 8 4 8 6 2 . . 4 9 11 Energy Gun 19 | . 4 . 4 3 1 1 . 1 . . 1 . . . 1 . 3 Energy Cannon 17 | . . . 1 . . . . 2 2 4 2 1 . . 2 2 1 Ballistic Gun 12 | . . 1 . . . . . 3 1 . 1 1 . . . 3 2 Ballistic Cannon 5 | . . . . . . . . . . 2 . . . . . . 3 Launcher 15 | . . . . 1 . . . 2 1 2 2 . . . 1 4 2 Special Weapon . | . . . . . . . . . . . . . . . . . . Impact Weapon 1 | . . . . . 1 . . . . . . . . . . . . Slashing Weapon 1 | . . . . . . 1 . . . . . . . . . . . Piercing Weapon . | . . . . . . . . . . . . . . . . . . Special Melee Weapon . | . . . . . . . . . . . . . . . . . . Unidentified Prototypes 11 | . . . 1 2 . . . . . . 4 1 . . 1 2 . Corrupted Parts 13 | . . . . 1 . . . . 1 1 5 2 . . . . 3 System Corruption 72 | . . . . 2 . . . . 1 1 39 17 . . . . 12 Parts Lost 63 | . . 1 10 6 1 . . 11 7 . 1 . . . 1 . 25 Power 9 | . . . 1 . . . . 2 2 . . . . . . . 4 Propulsion 14 | . . . 4 . 1 . . 3 2 . . . . . . . 4 Utility 26 | . . . 2 4 . . . 4 3 . . . . . 1 . 12 Weapon 14 | . . 1 3 2 . . . 2 . . 1 . . . . . 5 Highest Loss Streak 15 | . . 1 5 5 1 . . 9 2 . 1 . . . 1 . 15 To Critical Strikes 3 | . . . . . 1 . . 1 . . . . . . . . 1 Average Slot Usage (%) 89 | . 89 96 80 88 97 100 84 81 93 100 93 86 88 88 84 77 74 Engine 3 | . 13 11 7 7 7 7 7 7 . . . . . . . . . Core 4 | . . . . 2 7 7 7 6 12 13 1 . . . . . . Reactor 3 | . . . . . . . . . . . 11 11 11 11 7 5 7 Treads 14 | . . . 18 23 22 23 23 13 18 20 13 11 11 11 11 11 9 Leg 3 | . 27 31 4 . . . . . . . . . . . . . . Device 16 | . 4 10 6 12 13 15 15 13 25 26 26 21 17 17 15 11 16 Storage 6 | . 14 11 9 7 7 7 7 7 6 6 6 5 5 5 5 5 4 Processor 9 | . . . . 7 16 15 15 15 6 6 6 11 17 17 17 12 9 Hackware 1 | . . 9 10 4 . . . . . . . . . . . . . Protection 9 | . . . 6 6 7 7 7 . 8 13 13 11 11 11 12 17 14 Energy Gun 5 | . 27 17 11 8 12 13 . . . . 1 . . . 1 . 4 Energy Cannon 3 | . . . 4 4 . . . 1 5 6 8 1 5 5 3 4 1 Ballistic Gun 3 | . . 4 . . . . . 8 6 1 1 8 5 5 5 4 2 Peak Build Rating 146 | 6 12 18 34 40 42 43 40 48 68 66 105 125 128 128 132 143 146 Average Rating 71 | 6 9 16 22 36 41 42 37 37 62 64 93 120 125 125 129 134 123 On Entrance 64 | 6 6 12 18 33 40 41 43 37 44 62 64 105 125 125 125 132 136 Naked Turns 54 | . . . . . . . . . . . . . . . . . 54 Heaviest Build 137 | 14 32 57 64 74 71 71 65 78 93 99 119 116 116 112 113 115 137 Greatest Support 160 | 20 26 39 60 60 60 60 60 78 90 80 110 160 160 160 160 160 160 Greatest Overweight (x) 40 | . 7 1 15 1 1 1 1 3 1 1 1 . . . . . 40 Average Overweight (x) . | . . . 1 1 1 1 1 1 . 1 . . . . . . . Largest Inventory Capacity 20 | 8 15 20 20 20 20 20 20 20 20 20 20 20 20 20 20 20 20 Average Capacity 19 | 8 12 18 19 20 20 20 20 20 20 20 20 20 20 20 20 20 19 Most Carried 20 | 5 13 16 20 20 18 18 19 18 20 20 20 20 20 20 20 20 20 Average Carried 17 | 4 8 11 18 18 15 16 18 12 17 19 19 19 20 20 19 19 17 Final Capacity 20 | 8 15 20 20 20 20 20 20 20 20 20 20 20 20 20 20 20 5 Final Carried 20 | 2 10 16 19 18 15 18 19 12 19 20 20 20 20 20 19 19 5 Class Distribution -------------------- 56% | Scavenger-Mutant 26% | Mutant 9% | Hacker-Mutant 7% | Commander-Mutant Dominant Class ---------------- Mutant | -10/Materials Hacker-Mutant | -9/Materials Hacker-Mutant | -8/Materials Hacker-Mutant | -7/Factory Mutant | -7/Lower Caves Mutant | -7/Lower Caves Mutant | -7/Data Miner Mutant | -6/Proximity Caves Scavenger-Mutant | -6/Factory Scavenger-Mutant | -6/Extension Commander-Mutant | -6/Cetus Scavenger-Mutant | -5/Factory Scavenger-Mutant | -5/Upper Caves Scavenger-Mutant | -5/Upper Caves Scavenger-Mutant | -5/Warlord Scavenger-Mutant | -4/Proximity Caves Scavenger-Mutant | -4/Factory Resources | -11 -10 -9 -8 -7 -7 -7 -7 -6 -6 -6 -6 -5 -5 -5 -5 -4 -4 ----------- Run | Yrd Mat Mat Mat Fac Low Low Dat Pro Fac Ext Cet Fac Upp Upp War Pro Fac Matter Collected 5036 | 173 130 210 354 238 78 98 . 437 132 558 207 200 415 299 269 216 1022 Remotely . | . . . . . . . . . . . . . . . . . . Salvage Created 8190 | . 208 585 934 498 114 159 . 489 595 752 502 79 103 146 360 1476 1190 Parts 396 | . 14 46 39 26 5 3 . 23 36 33 18 1 4 3 19 64 62 Haulers Intercepted 5 | . 1 2 2 . . . . . . . . . . . . . . Recyclers Shooed 9 | . . 1 . . . . . . 2 5 . . . . . . 1 Parts Field Recycled . | . . . . . . . . . . . . . . . . . . Retrieved Matter . | . . . . . . . . . . . . . . . . . . Parts Self-Destructed 78 | . . . . . 5 3 . 16 . . . . 19 7 . 28 . Prevented 33 | . . . . . . . . . . . . . . . . 33 . Kills | -11 -10 -9 -8 -7 -7 -7 -7 -6 -6 -6 -6 -5 -5 -5 -5 -4 -4 ------- Run | Yrd Mat Mat Mat Fac Low Low Dat Pro Fac Ext Cet Fac Upp Upp War Pro Fac Combat Hostiles Destroyed 170 | . 9 17 19 14 2 3 . 18 10 14 7 1 2 2 7 29 16 Guns 77 | . 9 17 12 10 1 3 . 6 2 . 1 1 1 1 3 2 8 Cannons 40 | . . . 1 1 . . . 2 8 11 1 . 1 1 4 6 4 AOE 40 | . . . 4 3 . . . 10 . 3 . . . . . 17 3 Classes Destroyed 20 | . 3 2 3 1 1 . . 1 3 1 1 . . . 3 1 . Worker 1 | . . . . . . . . . 1 . . . . . . . . Builder 2 | . . . . . . . . . . 1 . . . . . . 1 Hauler 5 | . 1 2 2 . . . . . . . . . . . . . . Recycler 2 | . . . 1 . . . . . . . . . . . . . 1 Mechanic 1 | . . . . . . . . . 1 . . . . . . . . Operator 2 | . . 1 1 . . . . . . . . . . . . . . Drone 1 | . . . . . . . . 1 . . . . . . . . . Watcher 1 | . . . . . . . . . . . 1 . . . . . . Swarmer 52 | . 6 4 1 9 . . . 11 1 1 1 . 1 . 2 15 . Saboteur 1 | . . . . . . . . . . . . . . . . 1 . Grunt 43 | . 3 7 14 1 . 1 . 4 . 4 . . . . . 5 4 Brawler 7 | . . . . 2 . . . 1 . . . . . . . 4 . Duelist 8 | . . . 1 . . . . 1 . 4 . . . . . 2 . Protector 2 | . . . . . . . . . . . . . . . 2 . . Sentry 20 | . . 6 1 . . . . . 2 5 . 1 1 1 . 1 2 Demolisher 2 | . . . . . . . . . . . . . . . 2 . . Hunter 12 | . . . 2 2 . 2 . . 3 . . . . 1 . . 2 Programmer 12 | . . . . . 1 . . . 3 . . . . . . 1 7 Behemoth 2 | . . . . . . . . . 1 . . . . . . . 1 Cetus Guard 6 | . . . . . . . . . . . 6 . . . . . . Striker 1 | . . . . . . . . . . . . . . . 1 . . Savage 1 | . . . . . 1 . . . . . . . . . . . . Best Kill Streak 9 | . 3 8 6 7 2 2 . 7 2 6 5 1 1 1 6 9 4 Combat Bots Only 9 | . 3 8 5 7 2 2 . 7 1 6 4 1 1 1 6 9 4 Max Kills in Single Turn 3 | . 2 2 2 3 1 1 . 3 1 2 1 1 1 1 1 3 3 Gunslinging 1 | . 1 1 . 1 . . . . . . . . . . . . . Exploded 3 | . . . 2 3 . . . 3 . 2 . . . . . 3 3 Melee . | . . . . . . . . . . . . . . . . . . Uniques/NPCs Destroyed . | . . . . . . . . . . . . . . . . . . Combat | -11 -10 -9 -8 -7 -7 -7 -7 -6 -6 -6 -6 -5 -5 -5 -5 -4 -4 -------- Run | Yrd Mat Mat Mat Fac Low Low Dat Pro Fac Ext Cet Fac Upp Upp War Pro Fac Hostile Shots Fired 1482 | . 37 68 135 112 8 14 . 123 152 115 43 14 42 27 64 90 438 Missed 444 | . 10 20 42 21 2 7 . 36 61 36 13 6 11 7 14 36 122 Damage Taken 15745 | . 196 441 1301 1129 109 86 . 1347 1323 610 576 157 439 436 999 833 5763 Core 2250 | . 37 77 290 42 . 23 . 179 72 117 52 40 10 48 74 29 1160 Absorbed by Shields 1281 | . . . . . . . . 66 92 216 57 9 37 131 155 . 518 Reduced by Siege Mode 118 | . . . . . . . . . . . . . 4 23 12 . 79 Ignored by Resistances 4653 | . 64 133 351 329 29 24 . 386 386 246 171 45 137 154 321 244 1633 Regen/Repaired (Parts) 1185 | . . . 468 . . . . . . . . . . . 717 . . Core Remaining (%) 75 | 100 85 80 47 . . . . 65 . . 71 . . . . 79 . Volleys Fired 506 | . 12 35 69 36 7 10 . 44 61 50 17 8 11 9 23 36 78 Largest 2 | . 2 2 2 2 2 2 . 2 2 2 2 2 2 2 2 2 2 Hottest 334 | . 130 130 130 111 111 111 . 96 115 122 138 70 70 70 240 78 334 Shots Fired 848 | . 24 70 95 56 16 20 . 68 102 73 26 18 21 18 41 57 143 Gun 537 | . 24 70 81 47 16 20 . 59 54 . 2 14 11 9 21 20 89 Cannon 256 | . . . 14 6 . . . 3 44 60 19 4 10 9 18 21 48 Launcher 55 | . . . . 3 . . . 6 4 13 5 . . . 2 16 6 Special . | . . . . . . . . . . . . . . . . . . Kinetic 251 | . . 10 6 . . . . 31 54 24 1 14 11 9 20 20 51 Thermal 455 | . 24 60 64 35 16 20 . 31 44 13 1 4 10 9 19 21 84 Explosive 12 | . . . . 3 . . . 6 . 3 . . . . . . . Electromagnetic 130 | . . . 25 18 . . . . 4 33 24 . . . 2 16 8 Robot Hit Streak 28 | . 8 20 21 18 7 7 . 14 28 22 27 9 10 14 19 27 26 Robot Miss Streak 7 | . 7 6 4 3 1 3 . 3 3 3 . 1 3 1 1 2 2 Penetration Max 1 | . . . . . . . . . . . . . . . 1 . 1 Secondary Targets 12 | . 2 1 3 4 1 . . 1 . . . . . . . . . Max Gunslinging Chain 1 | . 1 1 1 1 1 . . 1 . . . . . . . . . Shots Hit Robots 667 | . 21 62 88 42 11 12 . 45 68 57 25 13 14 14 33 41 121 Core Hits 479 | . 36 83 83 24 4 6 . 36 32 36 15 6 3 4 20 50 41 Critical Kills 10 | . . . . . . . . 1 . . . . 1 1 2 2 3 Critical Parts Destroyed 16 | . . . . . . . . . . . . 1 3 1 4 . 7 Critical Strikes 40 | . . . 2 . 1 1 . 1 . 1 . 1 4 2 6 2 19 Burn 3 | . . . 1 . 1 1 . . . . . . . . . . . Meltdown 1 | . . . . . . . . . . . . . . . . 1 . Destroy 34 | . . . . . . . . 1 . . . 1 4 2 6 1 19 Blast 1 | . . . . . . . . . . 1 . . . . . . . Corrupt 1 | . . . 1 . . . . . . . . . . . . . . Melee Attacks 5 | . . . . . 4 1 . . . . . . . . . . . Impact 4 | . . . . . 4 . . . . . . . . . . . . Slashing 1 | . . . . . . 1 . . . . . . . . . . . Piercing . | . . . . . . . . . . . . . . . . . . Sneak Attacks . | . . . . . . . . . . . . . . . . . . Combat Hostiles . | . . . . . . . . . . . . . . . . . . Follow-up Attacks . | . . . . . . . . . . . . . . . . . . Damage Inflicted 20697 | . 331 843 1985 1124 236 219 . 1806 1780 2137 1245 415 420 420 1487 2348 3901 Guns 9379 | . 326 842 1339 717 236 219 . 794 729 . 46 348 161 179 566 334 2543 Cannons 5701 | . . . 316 123 . . . 42 795 1467 445 67 259 241 546 594 806 Explosions 5539 | . . . 330 284 . . . 964 240 620 754 . . . 375 1420 552 Melee . | . . . . . . . . . . . . . . . . . . Ramming 78 | . 5 1 . . . . . 6 16 50 . . . . . . . Kinetic 4359 | . . 104 64 . . . . 324 729 635 28 348 161 179 566 334 887 Thermal 9832 | . 326 738 1400 544 236 219 . 512 795 285 379 67 259 241 738 646 2447 Explosive 1649 | . . . . 284 . . . 964 . 401 . . . . . . . Electromagnetic 4779 | . . . 521 296 . . . . 240 766 838 . . . 183 1368 567 Impact . | . . . . . . . . . . . . . . . . . . Slashing . | . . . . . . . . . . . . . . . . . . Piercing . | . . . . . . . . . . . . . . . . . . Highest Corruption 41 | . . . 2 12 16 16 16 16 1 2 41 17 17 17 17 2 28 Average Corruption 11 | . . . 2 10 13 16 16 16 1 1 25 16 17 17 17 2 15 Corruption Purged . | . . . . . . . . . . . . . . . . . . Corruption Blocked . | . . . . . . . . . . . . . . . . . . Effects 375 | . . . 11 10 36 38 7 40 . 26 45 47 31 29 3 6 46 Message Errors 86 | . . . 3 2 10 14 1 9 . 2 8 14 10 6 1 . 6 Matter Fused 97 | . . . 4 1 7 8 3 10 . 6 13 13 7 7 2 2 14 Heat Flow Errors 36 | . . . . 1 3 4 . 4 . 4 5 6 3 . . 2 4 Energy Discharges 52 | . . . . 4 4 3 . 5 . 6 7 5 5 3 . 1 9 Parts Rejected 4 | . . . . . . . . 1 . . . . 1 . . . 2 Parts Fused 5 | . . . 1 1 . 2 . . . . . . . 1 . . . Data Loss (minor) 50 | . . . 1 . 9 2 2 3 . 6 7 6 4 6 . 1 3 Data Loss (major) 12 | . . . . . 1 3 1 3 . . 1 . . 1 . . 2 Misfires 9 | . . . . . 2 2 . . . . 1 2 . 2 . . . Alerts 8 | . . . 1 . . . . 3 . 1 1 1 . . . . 1 Misdirections 7 | . . . . . . . . 1 . . . . . 1 . . 5 Weapon Failures 9 | . . . 1 1 . . . 1 . 1 2 . 1 2 . . . Overload Shots 4 | . . . . . . . . . . . . . . . 1 . 3 Effects 1 | . . . . . . . . . . . . . . . . . 1 Energy Bleed 1 | . . . . . . . . . . . . . . . . . 1 Overflow Damage 116 | . . . . . . . . 61 . 7 29 . . . 13 6 . Projectiles 7 | . . . . . . . . . . 7 . . . . . . . Explosions 109 | . . . . . . . . 61 . . 29 . . . 13 6 . Melee . | . . . . . . . . . . . . . . . . . . Knockbacks 5 | . . . . . . . . . . 5 . . . . . . . Impact 1 | . . . . . . . . . . 1 . . . . . . . Kinetic 4 | . . . . . . . . . . 4 . . . . . . . Secondary . | . . . . . . . . . . . . . . . . . . Self-Inflicted Damage 106 | . . . 29 . . . . . . . . . . . . 59 18 Shots 8 | . . . 1 . . . . . . . . . . . . 6 1 Rammed 10 | . . . . . . . . 2 2 6 . . . . . . . Targets Rammed 12 | . 1 1 . . . . . 2 2 6 . . . . . . . Kicked 2 | . 1 1 . . . . . . . . . . . . . . . Crushed . | . . . . . . . . . . . . . . . . . . Highest Temperature 973 | . 396 253 773 492 222 192 . 247 238 281 187 187 80 . 120 . 973 Average Temperature 131 | . 119 88 173 211 85 64 . 55 99 84 77 84 41 . 75 . 244 Received Heat Transfer 3426 | . 60 243 729 144 . 18 . 492 171 215 . 54 30 225 51 205 789 Effects 44 | . 1 . 12 9 . . . . . 1 . . . . . . 21 Shutdowns 15 | . . . 1 6 . . . . . . . . . . . . 8 Energy Bleed 3 | . 1 . . . . . . . . 1 . . . . . . 1 Interference 9 | . . . 2 . . . . . . . . . . . . . 7 Matter Decay 3 | . . . 2 1 . . . . . . . . . . . . . Short Circuit 2 | . . . 1 1 . . . . . . . . . . . . . Damage (minor) 5 | . . . 1 1 . . . . . . . . . . . . 3 Damage (major) 4 | . . . 4 . . . . . . . . . . . . . . Damage (core) 3 | . . . 1 . . . . . . . . . . . . . 2 Siege Activations 6 | . . . . . . . . . . . . . 1 1 1 . 3 Total Turns 272 | . . . . . . . . . . . . . 4 17 156 . 95 Longest Duration 156 | . . . . . . . . . . . . . 4 17 156 . 52 Robots Corrupted 11 | . . . 2 . . . . . . . 5 . . . . 3 1 Combat Hostiles 11 | . . . 2 . . . . . . . 5 . . . . 3 1 Parts Fried 17 | . . . 2 . . . . . . . 5 . . . 3 5 2 Impact Corruptions . | . . . . . . . . . . . . . . . . . . Robots Melted 2 | . . . . . 1 . . . . . . . . . . 1 . Combat Hostiles 2 | . . . . . 1 . . . . . . . . . . 1 . Parts Melted 24 | . . 1 2 1 1 . . 1 8 2 . . . . . 6 2 Heat Transferred 13884 | . 400 915 2039 1073 518 518 . 999 1200 450 237 100 400 350 878 1000 2807 Parts Sabotaged . | . . . . . . . . . . . . . . . . . . Parts Stolen . | . . . . . . . . . . . . . . . . . . Parts Stripped . | . . . . . . . . . . . . . . . . . . Power Chain Reactions 13 | . . . 4 1 . . . . . 1 1 . . . 2 4 . Alert | -11 -10 -9 -8 -7 -7 -7 -7 -6 -6 -6 -6 -5 -5 -5 -5 -4 -4 ------- Run | Yrd Mat Mat Mat Fac Low Low Dat Pro Fac Ext Cet Fac Upp Upp War Pro Fac Peak Influence 1033 | . 125 419 427 239 . . . . 1033 606 416 383 . . . . 452 Initial 918 | . . 36 150 124 . . . . 918 144 294 102 . . . . 283 Average 274 | . 73 288 292 145 . . . . 733 135 301 241 . . . . 310 Maximum Alert Level 3 | . . 2 2 1 . . . . 3 2 2 1 . . . . 2 Low Security (%) 36 | 100 100 23 10 59 . . . . . 66 6 24 . . . . 7 Level 1 42 | . . 50 84 40 . . . . 4 30 58 75 . . . . 74 Level 2 13 | . . 25 5 . . . . . 41 3 35 . . . . . 17 Level 3 6 | . . . . . . . . . 54 . . . . . . . . Level 4 . | . . . . . . . . . . . . . . . . . . Level 5 . | . . . . . . . . . . . . . . . . . . High Security . | . . . . . . . . . . . . . . . . . . Max Security . | . . . . . . . . . . . . . . . . . . Squads Dispatched 21 | . . 2 3 1 . . . . 3 1 . 2 . . . 1 8 Investigation 7 | . . 1 . 1 . . . . . 1 . . . . . . 4 Extermination 7 | . . . . . . . . . 3 . . 1 . . . . 3 Reinforcement 6 | . . 1 3 . . . . . . . . 1 . . . . 1 Assault 1 | . . . . . . . . . . . . . . . . 1 . Garrison . | . . . . . . . . . . . . . . . . . . Intercept . | . . . . . . . . . . . . . . . . . . Searches Triggered 3 | . . . . . . . . . 3 . . . . . . . . Construction Impeded 2 | . . 1 1 . . . . . . . . . . . . . . Haulers Reinforced . | . . . . . . . . . . . . . . . . . . Active Scanning Responses . | . . . . . . . . . . . . . . . . . . Cargo Convoy Interrupts 1 | . . . . . . . . . . . . . . . . . 1 Stealth | -11 -10 -9 -8 -7 -7 -7 -7 -6 -6 -6 -6 -5 -5 -5 -5 -4 -4 --------- Run | Yrd Mat Mat Mat Fac Low Low Dat Pro Fac Ext Cet Fac Upp Upp War Pro Fac Distress Signals 17 | . 2 4 1 . . . . . 2 2 2 1 . . 1 . 2 Communications Jammed 198 | . . . . . . . . 3 4 191 . . . . . . . Distress Signals 193 | . . . . . . . . . 2 191 . . . . . . . Times Spotted 331 | . 21 23 31 16 2 3 . 27 21 38 13 9 9 3 42 36 37 Peak Tracking Total 13 | . 4 5 5 4 2 1 . 7 3 8 5 2 4 2 13 10 12 Tactical Retreats 16 | . 1 . 3 1 . . . 4 . . . . . . 4 2 1 Traps | -11 -10 -9 -8 -7 -7 -7 -7 -6 -6 -6 -6 -5 -5 -5 -5 -4 -4 ------- Run | Yrd Mat Mat Mat Fac Low Low Dat Pro Fac Ext Cet Fac Upp Upp War Pro Fac Traps Triggered 22 | . 3 1 2 1 . . . . 2 10 . 1 . . . . 2 Indirectly . | . . . . . . . . . . . . . . . . . . Trap Hack Attempts . | . . . . . . . . . . . . . . . . . . Triggered . | . . . . . . . . . . . . . . . . . . Disarmed . | . . . . . . . . . . . . . . . . . . Reprogrammed . | . . . . . . . . . . . . . . . . . . Reused . | . . . . . . . . . . . . . . . . . . Traps Extracted . | . . . . . . . . . . . . . . . . . . Installed . | . . . . . . . . . . . . . . . . . . Triggered 8 | . . . . . . . . . . . . . . . 7 . 1 Machines | -11 -10 -9 -8 -7 -7 -7 -7 -6 -6 -6 -6 -5 -5 -5 -5 -4 -4 ---------- Run | Yrd Mat Mat Mat Fac Low Low Dat Pro Fac Ext Cet Fac Upp Upp War Pro Fac Machines Disabled 27 | . . . 2 2 . . . . 1 10 . 9 . . 2 . 1 Max in Single Turn 3 | . . . 1 1 . . . . 1 3 . 1 . . 1 . 1 Garrison Access 1 | . . . . . . . . . . . . 1 . . . . . Energy Cycler 3 | . . . . . . . . . . 3 . . . . . . . Machines Repaired . | . . . . . . . . . . . . . . . . . . Machines Dismantled . | . . . . . . . . . . . . . . . . . . Machines Sabotaged . | . . . . . . . . . . . . . . . . . . Overloaded Fab Kills . | . . . . . . . . . . . . . . . . . . Hacking | -11 -10 -9 -8 -7 -7 -7 -7 -6 -6 -6 -6 -5 -5 -5 -5 -4 -4 --------- Run | Yrd Mat Mat Mat Fac Low Low Dat Pro Fac Ext Cet Fac Upp Upp War Pro Fac Machines Accessed 36 | . 8 6 2 1 . . 2 . 1 4 . 2 . . 3 . 7 Terminals 22 | . 8 5 1 1 . . . . . 4 . . . . . . 3 Fabricators 2 | . . . . . . . . . . . . 1 . . . . 1 Repair Stations 3 | . . . 1 . . . . . 1 . . . . . . . 1 Recycling Units . | . . . . . . . . . . . . . . . . . . Scanalyzers 3 | . . 1 . . . . . . . . . . . . . . 2 Garrison Access 1 | . . . . . . . . . . . . 1 . . . . . Total Hacks 127 | . 21 29 6 5 . . 17 . 3 12 . 4 . . 7 . 23 Successful 89 | . 10 23 5 3 . . 17 . 2 7 . 1 . . 7 . 14 Failed 38 | . 11 6 1 2 . . . . 1 5 . 3 . . . . 9 Catastrophic 3 | . . . . . . . . . . 1 . 2 . . . . . Database Lockouts . | . . . . . . . . . . . . . . . . . . Manual 49 | . 16 15 2 5 . . . . . 5 1 2 . . . . 3 Terminals 73 | . 21 23 4 5 . . . . . 12 . . . . . . 8 Fabricators 5 | . . . . . . . . . . . . 2 . . . . 3 Repair Stations 8 | . . . 2 . . . . . 3 . . . . . . . 3 Recycling Units . | . . . . . . . . . . . . . . . . . . Scanalyzers 15 | . . 6 . . . . . . . . . . . . . . 9 Garrison Access 2 | . . . . . . . . . . . . 2 . . . . . Terminal Hacks 44 | . 2 9 1 1 . . 17 . . 6 . . . . 7 . 1 Record 7 | . . . . . . . . . . . . . . . 7 . . Part Schematic 10 | . . . . . . . 10 . . . . . . . . . . Robot Schematic 4 | . . . . . . . 4 . . . . . . . . . . Robot Analysis 3 | . 1 1 . . . . . . . 1 . . . . . . . Prototype ID Bank 9 | . 1 4 . . . . 3 . . 1 . . . . . . . Open Door 1 | . . . . . . . . . . 1 . . . . . . . Level Access Points 1 | . . 1 . . . . . . . . . . . . . . . Branch Access Points 2 | . . 1 . . . . . . . . . . . . . . 1 Terminal Index 2 | . . 1 . 1 . . . . . . . . . . . . . Recycling Unit Index 1 | . . . 1 . . . . . . . . . . . . . . Alert Level 1 | . . . . . . . . . . 1 . . . . . . . Registered Components 1 | . . 1 . . . . . . . . . . . . . . . Zone Layout 2 | . . . . . . . . . . 2 . . . . . . . Fabricator Hacks 3 | . . . . . . . . . . . . . . . . . 3 Load Schematic 1 | . . . . . . . . . . . . . . . . . 1 Build 2 | . . . . . . . . . . . . . . . . . 2 Repair Station Hacks 5 | . . . 2 . . . . . 2 . . . . . . . 1 Scan Component 3 | . . . 1 . . . . . 1 . . . . . . . 1 Repair 2 | . . . 1 . . . . . 1 . . . . . . . . Recycling Unit Hacks . | . . . . . . . . . . . . . . . . . . Scanalyzer 14 | . . 6 . . . . . . . . . . . . . . 8 Insert Component 5 | . . 3 . . . . . . . . . . . . . . 2 Analyze 9 | . . 3 . . . . . . . . . . . . . . 6 Garrison Access Hacks 1 | . . . . . . . . . . . . 1 . . . . . Seal Access 1 | . . . . . . . . . . . . 1 . . . . . Unauthorized Hacks 22 | . 8 8 2 2 . . . . . 1 . . . . . . 1 Terminals 22 | . 8 8 2 2 . . . . . 1 . . . . . . 1 Botnet 11 | . 4 3 1 1 . . . . . 1 . . . . . . 1 Skim 11 | . 4 5 1 1 . . . . . . . . . . . . . Fabricators . | . . . . . . . . . . . . . . . . . . Repair Stations . | . . . . . . . . . . . . . . . . . . Recycling Units . | . . . . . . . . . . . . . . . . . . Scanalyzers . | . . . . . . . . . . . . . . . . . . Garrison Access . | . . . . . . . . . . . . . . . . . . Data Cores Recovered 1 | . . 1 . . . . . . . . . . . . . . . Used . | . . . . . . . . . . . . . . . . . . Hacking Detections 27 | . 8 5 1 1 . . . . . 3 1 1 . . . . 7 Full Trace Events 6 | . . . . 1 . . . . . 1 . . . . . . 4 Feedback Events . | . . . . . . . . . . . . . . . . . . Feedback Blocked . | . . . . . . . . . . . . . . . . . . Robot Schematics Acquired 4 | . . . . . . . 4 . . . . . . . . . . Robots Built . | . . . . . . . . . . . . . . . . . . Authchips . | . . . . . . . . . . . . . . . . . . Time . | . . . . . . . . . . . . . . . . . . Total Robot Build Rating . | . . . . . . . . . . . . . . . . . . Part Schematics Acquired 14 | . . 3 . . . . 10 . . . . . . . . . 1 Parts Built 1 | . . . . . . . . . . . . . . . . . 1 Authchips . | . . . . . . . . . . . . . . . . . . Time 343 | . . . . . . . . . . . . . . . . . 343 Total Part Build Rating 9 | . . . . . . . . . . . . . . . . . 9 Parts Repaired 1 | . . . 1 . . . . . . . . . . . . . . Time 70 | . . . 26 . . . . . 44 . . . . . . . . Parts Recycled . | . . . . . . . . . . . . . . . . . . Recycled Matter . | . . . . . . . . . . . . . . . . . . Retrieved Matter . | . . . . . . . . . . . . . . . . . . Retrieved Components . | . . . . . . . . . . . . . . . . . . Parts Scanalyzed 4 | . . 3 . . . . . . . . . . . . . . 1 Part Schematics Acquired 4 | . . 3 . . . . . . . . . . . . . . 1 Parts Damaged . | . . . . . . . . . . . . . . . . . . Bothacking | -11 -10 -9 -8 -7 -7 -7 -7 -6 -6 -6 -6 -5 -5 -5 -5 -4 -4 ------------ Run | Yrd Mat Mat Mat Fac Low Low Dat Pro Fac Ext Cet Fac Upp Upp War Pro Fac Used RIF Installer . | . . . . . . . . . . . . . . . . . . Robots Hacked . | . . . . . . . . . . . . . . . . . . Non-combat . | . . . . . . . . . . . . . . . . . . Combat . | . . . . . . . . . . . . . . . . . . Robot Hacks Applied . | . . . . . . . . . . . . . . . . . . Relay Couplers Released . | . . . . . . . . . . . . . . . . . . Fabnet Peak Effective % . | . . . . . . . . . . . . . . . . . . Robots Rewired 12 | . . . . . . . . . . 10 . . . . . 2 . Allies Hacked 1 | . . . . . . . . . 1 . . . . . . . . Hacks Repelled . | . . . . . . . . . . . . . . . . . . Allies | -11 -10 -9 -8 -7 -7 -7 -7 -6 -6 -6 -6 -5 -5 -5 -5 -4 -4 -------- Run | Yrd Mat Mat Mat Fac Low Low Dat Pro Fac Ext Cet Fac Upp Upp War Pro Fac Total Allies 28 | . . . . . . . . . 3 18 5 . . . . 2 . Largest Group 15 | . . . . . . . . . 3 11 15 13 4 4 3 2 . Highest-Rated Group 950 | . . . . . . . . . 93 490 950 880 384 384 288 77 . Highest-Rated Ally 159 | . . . . . . . . . 31 159 159 159 96 96 96 47 . Total Orders 9 | . . . . . . . . . . . 4 3 . . 2 . . STAY 4 | . . . . . . . . . . . 2 . . . 2 . . ROAM 2 | . . . . . . . . . . . . 2 . . . . . FOLLOW 2 | . . . . . . . . . . . 2 . . . . . . GUARD 1 | . . . . . . . . . . . . 1 . . . . . Ally Attacks 372 | . . . . . . . . . 66 158 38 40 29 24 8 9 . Total Damage 9124 | . . . . . . . . . 874 2849 783 2306 705 1005 299 303 . Kills 64 | . . . . . . . . . 7 22 5 16 7 2 3 2 . Allies Corrupted 2 | . . . . . . . . . 1 . . 1 . . . . . Allies Melted . | . . . . . . . . . . . . . . . . . . Intel | -11 -10 -9 -8 -7 -7 -7 -7 -6 -6 -6 -6 -5 -5 -5 -5 -4 -4 ------- Run | Yrd Mat Mat Mat Fac Low Low Dat Pro Fac Ext Cet Fac Upp Upp War Pro Fac Robot Analysis Total 3 | . 1 1 . . . . . . . 1 . . . . . . . Derelict Logs Recovered 8 | . . . . . 1 3 . . . . . . 1 2 . 1 . Drone Launches . | . . . . . . . . . . . . . . . . . . Drone Recoveries . | . . . . . . . . . . . . . . . . . . Exploration | -11 -10 -9 -8 -7 -7 -7 -7 -6 -6 -6 -6 -5 -5 -5 -5 -4 -4 ------------- Run | Yrd Mat Mat Mat Fac Low Low Dat Pro Fac Ext Cet Fac Upp Upp War Pro Fac Turns Passed 15941 | 2 1174 780 878 703 848 890 209 822 1258 2259 943 1086 700 687 848 668 1186 Spaces Moved 6902 | 1 685 381 265 233 286 341 84 251 560 845 340 619 409 393 378 333 498 Core 113 | . 1 . 5 . . . . . . . . . . . . . 107 Treads 5692 | . . . 229 233 286 341 84 251 560 845 340 619 409 393 378 333 391 Legs 1097 | 1 684 381 31 . . . . . . . . . . . . . . Wheels . | . . . . . . . . . . . . . . . . . . Hover . | . . . . . . . . . . . . . . . . . . Flight . | . . . . . . . . . . . . . . . . . . Fastest Speed 50 | 120 120 120 160 250 250 250 250 163 160 240 160 160 160 160 160 160 50 Average Speed 193 | 120 161 167 229 250 250 250 250 270 187 240 238 160 160 160 160 160 139 Slowest Speed 2050 | 120 400 190 800 250 250 250 250 410 243 240 240 160 160 160 160 160 2050 Overloaded Moves . | . . . . . . . . . . . . . . . . . . Propulsion Burnouts . | . . . . . . . . . . . . . . . . . . Robots Hopped . | . . . . . . . . . . . . . . . . . . Cave-ins Triggered 1 | . . . . . . . . . 1 . . . . . . . . Exploration Rate (%) 45 | 2 96 32 29 7 49 51 70 47 20 87 61 18 63 56 49 57 17 Regions Visited 17 Branch Regions 10 Pre-discovered Areas 2 | . . . . . . . . . . . . . . 1 . 1 . Known Exits Taken 10 | . . 1 . 1 1 1 1 1 1 1 1 . . 1 . . . Unknown Exits Taken 7 | 1 1 . 1 . . . . . . . . 1 1 . 1 1 . Scrap Searched 8 | . . . . . 1 3 . 2 . . . . 1 1 . . . Spaces Dug 17 | . . . . . 3 1 . . 13 . . . . . . . . Terrain Destroyed 201 | . . . 26 12 3 1 . 25 17 57 16 2 1 3 2 27 9 Melee 4 | . . . . . 3 1 . . . . . . . . . . . Projectile 50 | . . . . . . . . . 17 5 . 2 1 3 . 13 9 AOE 147 | . . . 26 12 . . . 25 . 52 16 . . . 2 14 . Terrain Rammed . | . . . . . . . . . . . . . . . . . . Walls Destroyed . | . . . . . . . . . . . . . . . . . . Machines Disabled . | . . . . . . . . . . . . . . . . . . Actions | -11 -10 -9 -8 -7 -7 -7 -7 -6 -6 -6 -6 -5 -5 -5 -5 -4 -4 --------- Run | Yrd Mat Mat Mat Fac Low Low Dat Pro Fac Ext Cet Fac Upp Upp War Pro Fac Total 8628 | 4 724 451 440 296 401 360 85 319 678 1017 463 699 430 431 579 406 845 Wait 701 | . . 21 48 3 94 . . . 15 10 59 37 6 22 164 10 212 Move 6885 | . 684 380 264 232 285 340 83 250 559 844 339 618 408 392 377 332 498 Hop . | . . . . . . . . . . . . . . . . . . Pick Up 104 | . 9 7 16 3 3 5 . 4 10 8 15 7 . 1 3 1 12 Fast Attach 71 | . 10 1 15 3 . . . 5 12 2 5 4 1 . 1 . 12 Attach 55 | . . 2 4 9 3 . . 10 4 1 2 2 . . 1 3 14 Detach 20 | . . . 3 3 . . 1 . 3 2 1 1 . . . 2 4 Swap 85 | . 2 3 6 4 1 2 . 3 6 12 3 12 4 6 5 9 7 Drop 106 | 4 6 1 15 3 4 2 1 1 6 15 22 10 . 1 5 2 8 Fire 506 | . 12 35 69 36 7 10 . 44 61 50 17 8 11 9 23 36 78 Melee 5 | . . . . . 4 1 . . . . . . . . . . . Ram . | . . . . . . . . . . . . . . . . . . Kick 2 | . 1 1 . . . . . . . . . . . . . . . Crush 10 | . . . . . . . . 2 2 6 . . . . . . . Escape Stasis 20 | . . . . . . . . . . 20 . . . . . . . Rewire 58 | . . . . . . . . . . 47 . . . . . 11 . Trap . | . . . . . . . . . . . . . . . . . . Miscellaneous . | . . . . . . . . . . . . . . . . . . Route ------- -11/Scrapyard -10/Materials (discovered 5 exits: *Mat x3 / [*Min x2]) -9/Materials (discovered 5 exits: *Mat x3 / Min x2) -8/Materials -7/Factory -7/Lower Caves -7/Lower Caves -7/Data Miner -6/Proximity Caves -6/Factory (discovered 2 exits: Low / *Ext) -6/Extension (discovered 3 exits: *Fac x2 / *Cet) -6/Cetus (discovered 2 exits: *Fac / *Arc) -5/Factory -5/Upper Caves -5/Upper Caves (discovered 2 exits: Fac / *War) -5/Warlord -4/Proximity Caves -4/Factory (discovered 3 exits: Res / Upp x2) History --------- Turn | Location | Event 3 | -11/Scrapyard | Discovered new exit (range 0) 3 | -11/Scrapyard | Entered Materials 219 | -10/Materials | Discovered new exit (range 10) 306 | -10/Materials | Build established: Mutant 462 | -10/Materials | Discovered new exit (range 6) 477 | -10/Materials | Discovered new exit (range 5) 675 | -10/Materials | Discovered new exit (range 16) 1059 | -10/Materials | Discovered new exit (range 13) 1177 | -10/Materials | Entered another Materials area 1177 | -9/Materials | Evolved 2 slots: Propulsion x1, Utility x1 1202 | -9/Materials | Identified exit to Mines 1312 | -9/Materials | Identified exit to Materials 1584 | -9/Materials | Build established: Hacker-Mutant 1653 | -9/Materials | Destroyed 8 combat bots 1906 | -9/Materials | Learned 2 Storage zone layouts 1957 | -9/Materials | Entered another Materials area 1957 | -8/Materials | Evolved 2 slots: Utility x2 2097 | -8/Materials | Lost 5 parts (1p2n1u1w) 2192 | -8/Materials | Lost 4 parts (1n1u2w) 2575 | -8/Materials | Build established: Scavenger-Mutant 2646 | -8/Materials | Repaired Hcp. Storage Unit 2734 | -8/Materials | Core integrity fell below 50% 2792 | -8/Materials | Discovered new exit (range 16) 2835 | -8/Materials | Entered Factory 2835 | -7/Factory | Evolved 2 slots: Power x1, Utility x1 2973 | -7/Factory | Build established: Hacker-Mutant 3338 | -7/Factory | System corruption reached 10% 3368 | -7/Factory | Lost 5 parts (4u1w) 3422 | -7/Factory | Destroyed 7 combat bots 3488 | -7/Factory | Discovered new exit (range 11) 3516 | -7/Factory | Identified exit to Lower Caves 3538 | -7/Factory | Entered Lower Caves 3621 | -7/Lower Caves | Build established: Mutant 3772 | -7/Lower Caves | Identified exit to Lower Caves 4386 | -7/Lower Caves | Entered another Lower Caves area 4802 | -7/Lower Caves | Learned Factory non-interactive machine intel 4859 | -7/Lower Caves | Spotted B-75 Beast 5205 | -7/Lower Caves | Discovered new exit (range 13) 5266 | -7/Lower Caves | Learned 4 Factory zone layouts 5271 | -7/Lower Caves | Identified exit to Data Miner 5276 | -7/Lower Caves | Entered Data Miner 5277 | -7/Data Miner | Discovered new exit (range 6) 5325 | -7/Data Miner | Met Data Miner 5425 | -7/Data Miner | Received God Mode back door access code from Data Miner 5480 | -7/Data Miner | Identified exit to Proximity Caves 5485 | -7/Data Miner | Entered Proximity Caves 5601 | -6/Proximity Caves | Spotter reported a threat 5621 | -6/Proximity Caves | Lost 9 parts (2p3n3u1w) 5717 | -6/Proximity Caves | Spotter reported a threat 5795 | -6/Proximity Caves | Spotter reported a threat 5848 | -6/Proximity Caves | Spotter reported a threat 6085 | -6/Proximity Caves | Spotter reported a threat 6236 | -6/Proximity Caves | Spotter reported a threat 6250 | -6/Proximity Caves | Destroyed 7 combat bots 6294 | -6/Proximity Caves | Discovered new exit (range 7) 6298 | -6/Proximity Caves | Spotter reported a threat 6304 | -6/Proximity Caves | Identified exit to Factory 6307 | -6/Proximity Caves | Entered Factory 6307 | -6/Factory | Evolved 2 slots: Utility x2 6308 | -6/Factory | Identified exit to Lower Caves 6310 | -6/Factory | Loaded intel: 214 non-interactive machine locations 6359 | -6/Factory | Spotted B-75 Beast 6397 | -6/Factory | Destroyed B-75 Beast 6657 | -6/Factory | Search patrols dispatched 6771 | -6/Factory | Build established: Scavenger-Mutant 6812 | -6/Factory | Allied Derelicts emerged from ambush trap array 7007 | -6/Factory | Search patrols dispatched 7244 | -6/Factory | Crushed by falling debris 7357 | -6/Factory | Search patrols dispatched 7391 | -6/Factory | Lost 3 allies 7529 | -6/Factory | Discovered new exit (range 15) 7562 | -6/Factory | Identified exit to Extension 7565 | -6/Factory | Entered Extension 7570 | -6/Extension | Disrupted transfer network 7664 | -6/Extension | Rescued a captive Derelict 7693 | -6/Extension | Rescued a captive Derelict 7693 | -6/Extension | Rescued a captive Derelict 7999 | -6/Extension | Rescued a captive Derelict 7999 | -6/Extension | Rescued a captive Derelict 8119 | -6/Extension | Rescued a captive Derelict 8165 | -6/Extension | Rescued a captive Derelict 8933 | -6/Extension | Spotted B-75 Beast 8945 | -6/Extension | Allies destroyed B-75 Beast 8956 | -6/Extension | Spotted B-75 Beast 8974 | -6/Extension | Allies destroyed B-75 Beast 9015 | -6/Extension | Lost 4 allies 9056 | -6/Extension | Discovered new exit (range 3) 9173 | -6/Extension | Rescued A7 9459 | -6/Extension | Energy Cycler disabled 9459 | -6/Extension | Rescued a captive Derelict 9753 | -6/Extension | Discovered new exit (range 10) 9755 | -6/Extension | Discovered new exit (range 6) 9816 | -6/Extension | Identified exit to Cetus 9824 | -6/Extension | Entered Cetus 9824 | -6/Cetus | Accompanied by 10 allies (A7) 9829 | -6/Cetus | Acquired a Cetus Manufacturing Module code from A7 9871 | -6/Cetus | Spotted Cetus Guard 9871 | -6/Cetus | Spotted Cetus Guard 9873 | -6/Cetus | Spotted Cetus Guard 9873 | -6/Cetus | Spotted Cetus Guard 9877 | -6/Cetus | Allies destroyed Cetus Guard 9883 | -6/Cetus | Destroyed Cetus Guard 9887 | -6/Cetus | Allies destroyed Cetus Guard 9888 | -6/Cetus | Destroyed Cetus Guard 9943 | -6/Cetus | System corruption reached 10% 10045 | -6/Cetus | Started Cetus Manufacturing Module 10070 | -6/Cetus | Manufactured an Enhanced Grunt 10095 | -6/Cetus | Manufactured an Enhanced Grunt 10120 | -6/Cetus | Manufactured an Enhanced Grunt 10145 | -6/Cetus | Manufactured an Enhanced Grunt 10170 | -6/Cetus | Manufactured an Enhanced Grunt 10342 | -6/Cetus | Discovered new exit (range 15) 10376 | -6/Cetus | Identified exit to Archives 10396 | -6/Cetus | Build established: Commander-Mutant 10440 | -6/Cetus | Spotted Cetus Guard 10440 | -6/Cetus | Spotted Cetus Guard 10443 | -6/Cetus | Spotted Cetus Guard 10444 | -6/Cetus | Spotted Cetus Guard 10450 | -6/Cetus | Destroyed Cetus Guard 10458 | -6/Cetus | Destroyed Cetus Guard 10464 | -6/Cetus | Destroyed Cetus Guard 10465 | -6/Cetus | Destroyed Cetus Guard 10479 | -6/Cetus | Discovered new exit (range 15) 10491 | -6/Cetus | Met Revision 17 10493 | -6/Cetus | System corruption reached 30% 10543 | -6/Cetus | Identified exit to Factory 10574 | -6/Cetus | Security sweep announced 10767 | -6/Cetus | Entered Factory 10767 | -5/Factory | Accompanied by 13 allies (A7) 10767 | -5/Factory | Evolved 2 slots: Propulsion x1, Utility x1 10769 | -5/Factory | System corruption reached 10% 10893 | -5/Factory | Lost 5 allies 11163 | -5/Factory | Build established: Scavenger-Mutant 11673 | -5/Factory | Discovered new exit (range 16) 11853 | -5/Factory | Entered Upper Caves 11853 | -5/Upper Caves | Accompanied by 4 allies 12414 | -5/Upper Caves | Attracted the attention of an 0b10 checkpoint 12505 | -5/Upper Caves | Discovered new exit (range 15) 12543 | -5/Upper Caves | Learned Factory emergency access door positions 12553 | -5/Upper Caves | Entered another Upper Caves area 12553 | -5/Upper Caves | Accompanied by 4 allies 12717 | -5/Upper Caves | Discovered new exit (range 14) 13020 | -5/Upper Caves | Learned location of Armory (-3) 13046 | -5/Upper Caves | Identified exit to Warlord 13094 | -5/Upper Caves | Spotted B-75 Beast 13120 | -5/Upper Caves | Allies destroyed B-75 Beast 13240 | -5/Upper Caves | Entered Warlord 13240 | -5/Warlord | Accompanied by 3 allies 13295 | -5/Warlord | System corruption cleaned by Quarantine Array 13468 | -5/Warlord | Learned Factory fabricator intel 13468 | -5/Warlord | Learned 4 Testing zone layouts 13468 | -5/Warlord | Learned Armory emergency access door positions 13468 | -5/Warlord | Learned Quarantine stockpile data 13529 | -5/Warlord | Met Warlord 13554 | -5/Warlord | Warlord's base attacked by MAIN.C 13555 | -5/Warlord | Found Prototype Reactor 13555 | -5/Warlord | Identified Vortex Chain Reactor 13566 | -5/Warlord | Found Prototype Processor 13574 | -5/Warlord | Found Prototype Device 13844 | -5/Warlord | Lost 3 allies 13904 | -5/Warlord | Warlord forces counterattacked 13924 | -5/Warlord | Spotted Striker 13927 | -5/Warlord | Destroyed Striker 13963 | -5/Warlord | Lost 3 allies 14017 | -5/Warlord | Spotted Executioner 14048 | -5/Warlord | Lost 7 allies 14054 | -5/Warlord | Spotted Striker 14068 | -5/Warlord | Discovered new exit (range 9) 14088 | -5/Warlord | Entered Proximity Caves 14108 | -4/Proximity Caves | Attracted the attention of an 0b10 outpost 14176 | -4/Proximity Caves | Destroyed 9 combat bots 14264 | -4/Proximity Caves | Identified Exp. Phase Shifter 14265 | -4/Proximity Caves | Identified Exp. Core Analyzer 14373 | -4/Proximity Caves | Learned location of Testing (-3) 14736 | -4/Proximity Caves | Discovered new exit (range 14) 14756 | -4/Proximity Caves | Entered Factory 14756 | -4/Factory | Evolved 2 slots: Utility x2 14757 | -4/Factory | Identified exit to Research 14759 | -4/Factory | Loaded intel: 6 fabricator locations 14771 | -4/Factory | Identified exit to Upper Caves 15079 | -4/Factory | System corruption reached 10% 15225 | -4/Factory | Spotted B-86 Titan 15343 | -4/Factory | Destroyed B-86 Titan 15355 | -4/Factory | Lost 4 parts (1n3u) 15520 | -4/Factory | Fabricated Biometal Heavy Treads (x1) 15638 | -4/Factory | Cargo convoy interrupted 15657 | -4/Factory | Lost 4 parts (1p3u) 15870 | -4/Factory | Core integrity fell below 50% 15888 | -4/Factory | Released all parts (3) 15900 | -4/Factory | Core integrity fell below 20% 15918 | -4/Factory | Lost 15 parts (2p3n6u4w) 15942 | -4/Factory | Destroyed by G-67 Veteran with Field Laser Last Messages --------------- 15892_ U-05 Engineer builds a Wall. 15893_ Slug penetrates Wall. 15893_ R-10 Processor collects Adv. Variable Charge Gun. 15893_ Slug penetrates Wall. 15893_ Penetrated by Slug. 15896_ R-10 Processor collects Imp. Remote Datajack. 15896_ U-05 Engineer lays Concrete. 15897_ LHM3MQHJVK9RVKP6HSQB54R#,S%UHQFK03ACTFM 15897_ Triggered Segregator Trap. 15897_ Arcs of energy rise from the floor. 15899_ Penetrated by Slug. 15905_ Slug penetrates Wall. 15912_ Penetrated by Slug. 15914_ System corrupted: Substantial component data lost. 15915_ Penetrated by Slug. 15924_ O-24 Administrator: "IFF HANDSHAKE FAILED. SECURING TERMINAL." 15926_ ALERT: Hostiles spotted, dispatching reinforcements to Terminal F010. 15937_ System corrupted: Energy discharge (-20). Map ----- +----------------------------------------------------+ | | | | | | | | | | | | | | | ?????????????????????????????????????????????????? | | ?????????????????????????????????????????????????? | | ?????????????????????????????????????????????????? | | ?????????????????#######?????????????????????????? | | ?????????????????# #?????????????????????????? | | ????????????? ??# #?????????????????????????? | | ?????????????? ### #??????#??????????????????? | | ??????????????? #????? #??????????????????? | | ???????????????# #????? #??????????????????? | | ???????????????# ###### #??????????????????? | | ???????????????# #??????????????????? | | ???????????????# g #??????????????????? | | ???????????????# g g #??????????????????? | | ???????????????# #??????????????????? | | ???????????????# +??????????????????? | | ?????#######???# g #??????????????????? | | ?????# #???# #??????????????????? | | ?????# " " #???# #??????????????????? | | ?????# " " #??#####/#####@ #??????????????????? | | ?????# " " #### # ????????????? | | ###### " " + / # ####+###???????????? | | + + " " #### # #??????????????????? | | # # " " #??# # #??????????????????? | | # # " " #??########### #??????????????????? | | # " " #????????????# #??????????????????? | | + " " #????????????# #??????????????????? | | # #????????????# #??????????????????? | | #### # #????????????? #??????????????????? | | ####+#######????????????? ??????????????????? | | #???????????????? ??????????????????? | | #???????????????? ?????????????????? | | #???????????????? ?????????????????? | | #???????????????? ???????????????????? | | #???????????????? ?????????????????????? | | #????????????????????????????????????????? | | #????????????????????????????????????????? | | #????????????????????????????????????????? | | #????????????????????????????????????????? | | ###/########## ??????????????????????????????? | | ??????????????????????????????? | | ??????????????????????+???????? | | ??????????????????????????????? | | ??????????????????????????????? | +----------------------------------------------------+ Best States ------------- Heat Dissipation 74 Coolant Potential 65 Energy Generation 55 Energy Capacity 700 Matter Stores 300 Matter Capacity 300 Sight Range 16 Robot Scan Range 18 Terrain Scan Range 16 Terrain Scan Density 410 Jamming Range 14 Base Temperature (-) 200 EM Shielding 2 Armor Coverage 2100 Resistance: KI 20 Resistance: TH 35 Resistance: EX 20 Resistance: EM 20 Resistance: I 20 Resistance: S 20 Resistance: P 20 Weapon Cycling 15 Phase Shifting 20 Evasion (%) 60 Targeting Accuracy 8 Core Analysis 8 Recoil Reduction 4 Matter Filtering 30 Offensive Hacking 20 Defensive Hacking 10 Item Schematics ----------------- Imp. Aluminum Leg | -9/Materials | Scanalyzed Lrg. Storage Unit | -9/Materials | Scanalyzed Hcp. Matter Pod | -9/Materials | Scanalyzed Combat Drone Bay | -7/Data Miner | Free Lgt. Regenerative Plating | -7/Data Miner | Free Biomechanical Wings | -7/Data Miner | Free Exp. Utility Shielding | -7/Data Miner | Free Ion Burst Cannon | -7/Data Miner | Free Gyrokinetic Inverter | -7/Data Miner | Free Recoil Nullifier | -7/Data Miner | Free Imp. Plasma Cutter | -7/Data Miner | Free Lrn. Proton Cannon | -7/Data Miner | Free Impulse Thruster | -7/Data Miner | Free Centrium Heavy Treads | -4/Factory | Scanalyzed Robot Schematics ------------------ E-15 Imp | -7/Data Miner | Free G-50 Soldier | -7/Data Miner | Free W-25 Informer | -7/Data Miner | Free D-53 Grenadier | -7/Data Miner | Free Fabricated ------------ Biometal Heavy Treads | x1 | -4/Factory | Preloaded Alien Tech Used ----------------- None Achievements -------------- None Challenges ------------ None Game ------ Seed CompactMyomerCasing Manual? 0 Play Time 02:03:27 Cumulative 257.6 hours Start 2024.08.10 @ 00:27:57 End 2024.08.10 @ 03:18:48 Sessions 1 Manual Loads 0 Difficulty Adventurer Special Mode None Game No. 192 Rogue 63 Adventurer 103 Explorer 26 Win Type - Total 1 Types 1/0/0/0/0/0/0/0/0 Lore% 58 Gallery% 68 Achievement% 68 Wizard Run 0 Options --------- Layout 2 ASCII 0 Keyboard 0 Movement Arrows Keybinds 0 Fullscreen 0 Font 18/CogNarrow Map View 64x51 Zoom Use 0% Tactical HUD 1 Map Filters NONE Filters BRIGHTNESS(115)|SATURATION(100)|LOW_CONTRAST(0,16,30) Steam 1 RUN: c8024dc5-4c25-462b-8685-7c5a8fa56b03